bitfinex-derivatives/quotes_BTCF0:USTF0_20260118
["timestamp","ask_amount","ask_price","bid_price","bid_amount"]
[1768730416270,0.09520774,95344.0,95335.0,6.2e-07]
[1768730417082,0.09520774,95344.0,95327.0,0.07543856]
[1768730417475,0.010493,95336.0,95327.0,0.07543856]
[1768730417671,0.00230743,95344.0,95327.0,0.27941085]
[1768730418274,0.00230743,95344.0,95327.0,0.16697821]
[1768730418578,0.010493,95338.0,95327.0,0.16697821]
[1768730418778,0.00230743,95344.0,95327.0,0.16697821]
[1768730419383,0.010493,95338.0,95327.0,0.16697821]
[1768730422684,0.010493,95338.0,95328.0,0.07543856]
[1768730422983,0.010493,95338.0,95328.0,0.18017396]
[1768730424275,0.010493,95338.0,95328.0,0.1047354]
[1768730425183,0.010493,95336.0,95327.0,0.09153965]
[1768730428692,0.12153498,95344.0,95327.0,0.09153965]
[1768730428881,0.010493,95339.0,95337.0,7.8e-07]
[1768730429081,0.010493,95337.0,95327.0,0.09153965]
[1768730430787,0.12153498,95344.0,95330.0,0.20461692]
[1768730430788,0.010493,95343.0,95330.0,0.20461692]
[1768730430977,0.010493,95343.0,95332.0,0.20461692]
[1768730431580,0.00230743,95344.0,95332.0,0.20461692]
[1768730431880,0.00230743,95344.0,95332.0,0.09586786]
[1768730432085,0.010493,95339.0,95328.0,0.10874906]
[1768730434898,0.010493,95342.0,95328.0,0.10874906]
[1768730435603,0.00549441,95342.0,95328.0,0.10874906]
[1768730436594,0.00230743,95344.0,95328.0,0.10874906]
[1768730436595,0.00230743,95344.0,95328.0,0.19909122]
[1768730436793,0.20854558,95360.0,95334.0,0.09034216]
[1768730436994,0.09448,95359.0,95338.0,0.11369504]
[1768730437791,0.20854558,95360.0,95338.0,0.11369504]
[1768730437996,0.09448,95359.0,95338.0,0.11369504]
[1768730438297,0.21250306,95359.0,95338.0,0.11369504]
[1768730438698,0.010492,95354.0,95338.0,0.11369504]
[1768730440006,0.09448,95353.0,95338.0,0.11369504]
[1768730440600,0.010492,95354.0,95340.0,0.11369504]
[1768730440796,0.010492,95354.0,95342.0,0.11369504]
[1768730441000,0.010491,95355.0,95343.0,0.11369504]
[1768730442205,0.09448,95355.0,95344.0,0.11369504]
[1768730442799,0.010491,95358.0,95344.0,0.11369504]
[1768730443107,0.09448,95357.0,95344.0,0.11369504]
[1768730443305,0.00230695,95364.0,95345.0,0.11369504]
[1768730443498,0.09448,95358.0,95345.0,0.11369504]
[1768730444614,0.09448,95359.0,95345.0,0.11369504]
[1768730444801,0.09448,95359.0,95346.0,0.11369504]
[1768730445401,0.010491,95360.0,95346.0,0.11369504]
[1768730445602,0.09448,95359.0,95346.0,0.11369504]
[1768730446002,0.09448,95359.0,95346.0,0.2040372]
[1768730446210,0.09448,95359.0,95347.0,0.11369504]
[1768730446810,0.01049,95363.0,95349.0,0.11369504]
[1768730447010,0.01814722,95369.0,95351.0,0.11369504]
[1768730447216,0.09448,95379.0,95360.0,0.09034216]
[1768730447411,0.09448,95379.0,95361.0,0.11369504]
[1768730447917,0.12032953,95384.0,95361.0,0.11369504]
[1768730448214,0.01049,95372.0,95361.0,4e-08]
[1768730449107,0.010489,95376.0,95361.0,4e-08]
[1768730449307,0.104969,95376.0,95361.0,4e-08]
[1768730452019,0.010489,95375.0,95361.0,4e-08]
[1768730453412,0.010489,95372.0,95361.0,4e-08]
[1768730453617,0.02437184,95372.0,95361.0,4e-08]
[1768730453812,0.02437184,95372.0,95355.0,0.20565237]
[1768730454016,0.02437184,95372.0,95356.0,0.11240752]
[1768730455022,0.02437184,95372.0,95357.0,0.11240752]
[1768730458527,0.02437184,95372.0,95357.0,0.20565237]
[1768730458728,0.02437184,95372.0,95358.0,0.11240752]
[1768730462230,0.01388284,95372.0,95358.0,0.11240752]
[1768730462428,0.09448,95376.0,95359.0,0.11240752]
[1768730462628,0.010489,95373.0,95359.0,0.11240752]
[1768730463128,0.104969,95376.0,95360.0,0.11240752]
[1768730463324,0.11864653,95376.0,95360.0,0.11240752]
[1768730464924,0.11864653,95376.0,95360.0,0.20565237]
[1768730465322,0.10815753,95376.0,95361.0,0.11240752]
[1768730467538,0.01367753,95376.0,95361.0,0.11240752]
[1768730467738,0.010489,95377.0,95361.0,0.11240752]
[1768730468640,0.010489,95377.0,95362.0,0.09324485]
[1768730471640,0.010489,95377.0,95362.0,0.20565237]
[1768730472942,0.02535809,95377.0,95362.0,0.20565237]
[1768730475446,0.02535809,95377.0,95363.0,0.11240752]
[1768730481843,0.010489,95374.0,95363.0,0.11240752]
[1768730482044,0.010489,95374.0,95358.0,0.12289852]
[1768730482235,0.010489,95374.0,95359.0,0.09532318]
[1768730482441,0.010489,95374.0,95360.0,0.11080065]
[1768730482642,0.010489,95374.0,95360.0,0.20612383]
[1768730482842,0.010489,95374.0,95361.0,0.11080065]
[1768730483043,0.011489,95374.0,95361.0,0.11080065]
[1768730483849,0.010489,95374.0,95361.0,0.11080065]
[1768730484243,0.010489,95374.0,95358.0,0.010491]
[1768730484244,0.01486909,95377.0,95363.0,0.11080065]
[1768730484449,0.09444,95379.0,95364.0,0.09532318]
[1768730484645,0.07551855,95374.0,95364.0,0.01856683]
[1768730484851,0.07551855,95374.0,95358.0,0.010491]
[1768730484852,0.07551855,95375.0,95358.0,0.010491]
[1768730486349,0.07551855,95375.0,95359.0,0.11080065]
[1768730487553,0.010489,95374.0,95359.0,0.11080065]
[1768730488162,0.01049,95372.0,95359.0,0.11080065]
[1768730490048,0.09726736,95374.0,95355.0,0.11080065]
[1768730490255,0.09726736,95369.0,95354.0,0.09444]
[1768730490449,0.10775736,95368.0,95354.0,0.09444]
[1768730490652,0.01049,95365.0,95354.0,0.09444]
[1768730492054,0.01049,95365.0,95349.0,0.11310798]
[1768730493647,0.21004957,95365.0,95349.0,0.00230733]
[1768730493848,0.010491,95357.0,95344.0,0.00230743]
[1768730494048,0.010491,95354.0,95338.0,0.20612383]
[1768730495047,0.010491,95354.0,95339.0,0.11080065]
[1768730496150,0.010495,95324.0,95299.0,0.09527224]
[1768730496350,0.010495,95324.0,95297.0,0.010498]
[1768730496351,0.010496,95316.0,95287.0,0.010499]
[1768730496653,0.10472127,95310.0,95280.0,0.19916127]
[1768730496851,0.010497,95307.0,95284.0,0.01037002]
[1768730497052,0.10472127,95310.0,95289.0,0.01037002]
[1768730497253,0.18796402,95313.0,95288.0,0.01037002]
[1768730497453,0.010498,95299.0,95284.0,0.01037002]
[1768730497753,0.010498,95296.0,95271.0,0.09444]
[1768730497955,0.010498,95292.0,95271.0,0.09444]
[1768730498157,0.010498,95296.0,95272.0,0.10863869]
[1768730498345,0.010498,95296.0,95274.0,0.10863869]
[1768730498565,0.010498,95296.0,95281.0,0.10863869]
[1768730498850,0.09444,95300.0,95282.0,0.10863869]
[1768730499054,0.09444,95300.0,95284.0,0.10863869]
[1768730499359,0.09444,95300.0,95280.0,0.10472127]
[1768730499360,0.09448,95300.0,95289.0,0.09527224]
[1768730499654,0.010497,95305.0,95290.0,0.10863869]
[1768730499961,0.09448,95304.0,95290.0,0.10863869]
[1768730501655,0.010497,95303.0,95290.0,0.10863869]
[1768730502069,0.010497,95303.0,95290.0,0.10382069]
[1768730502273,0.010497,95303.0,95290.0,0.09901469]
[1768730504558,0.11521827,95300.0,95290.0,0.09901469]
[1768730504954,0.010497,95300.0,95290.0,6.9e-07]
[1768730505559,0.09448,95304.0,95290.0,6.9e-07]
[1768730506463,0.010498,95299.0,95290.0,6.9e-07]
[1768730508969,0.010498,95299.0,95285.0,0.10863869]
[1768730510056,0.010498,95296.0,95285.0,0.10863869]
[1768730514870,0.010498,95294.0,95285.0,0.10863869]
[1768730518474,0.010498,95297.0,95286.0,0.11267529]
[1768730518874,0.010498,95297.0,95286.0,0.20555951]
[1768730519177,0.010498,95297.0,95287.0,0.11267529]
[1768730525586,0.104977,95301.0,95287.0,0.11267529]
[1768730525772,0.02133149,95300.0,95287.0,0.11267529]
[1768730525975,0.03182949,95299.0,95287.0,0.11267529]
[1768730526175,0.02133149,95298.0,95287.0,0.11267529]
[1768730526373,0.02133149,95297.0,95287.0,0.11267529]
[1768730526571,0.02133149,95296.0,95287.0,0.11267529]
[1768730526775,0.02133149,95295.0,95287.0,0.11267529]
[1768730526987,0.010498,95299.0,95287.0,0.11267529]
[1768730529685,0.09452,95302.0,95287.0,0.11267529]
[1768730530394,0.010498,95298.0,95287.0,0.11267529]
[1768730533781,0.010498,95296.0,95287.0,0.11267529]
[1768730534279,0.010498,95294.0,95287.0,0.11267529]
[1768730534780,0.10472127,95300.0,95287.0,0.11267529]
[1768730535182,0.010498,95295.0,95287.0,0.11267529]
[1768730535390,0.10472127,95300.0,95287.0,0.11267529]
[1768730535589,0.010498,95295.0,95287.0,0.11267529]
[1768730535891,0.10472127,95300.0,95287.0,0.11267529]
[1768730536091,0.010498,95295.0,95287.0,0.11267529]
[1768730536291,0.10472127,95300.0,95287.0,0.11267529]
[1768730537593,0.010498,95297.0,95287.0,0.11267529]
[1768730537891,0.010498,95295.0,95287.0,0.11267529]
[1768730540088,0.02128613,95294.0,95287.0,0.11267529]
[1768730540279,0.02128613,95293.0,95287.0,0.11267529]
[1768730540486,0.010498,95295.0,95287.0,0.11267529]
[1768730540988,0.15348261,95304.0,95280.0,0.10472127]
[1768730540989,0.09452,95306.0,95292.0,0.11267529]
[1768730541289,0.010497,95302.0,95292.0,0.11267529]
[1768730541488,0.11521827,95302.0,95292.0,0.11267529]
[1768730541793,0.010497,95302.0,95286.0,0.11267529]
[1768730542992,0.010497,95302.0,95290.0,0.10472127]
[1768730543996,0.010497,95300.0,95290.0,0.10472127]
[1768730544194,0.010497,95300.0,95286.0,0.11267529]
[1768730544985,0.11521827,95300.0,95286.0,0.11267529]
[1768730545386,0.010497,95300.0,95286.0,0.11267529]
[1768730545897,0.11521827,95300.0,95286.0,0.11267529]
[1768730549590,0.010497,95300.0,95286.0,0.11267529]
[1768730549790,0.11521827,95300.0,95286.0,0.11267529]
[1768730551292,0.11291046,95300.0,95286.0,0.11267529]
[1768730557504,0.00818919,95300.0,95286.0,0.11267529]
[1768730558603,0.010497,95303.0,95286.0,0.11267529]
[1768730560006,0.010497,95301.0,95286.0,0.11267529]
[1768730563205,0.09452,95305.0,95290.0,0.20415822]
[1768730563411,0.01524284,95307.0,95292.0,0.08643873]
[1768730563606,0.010497,95308.0,95293.0,0.11771949]
[1768730563808,0.09452,95309.0,95293.0,0.11771949]
[1768730564608,0.010497,95305.0,95293.0,0.11771949]
[1768730565110,0.010497,95303.0,95293.0,0.11771949]
[1768730568815,0.010497,95301.0,95293.0,0.11771949]
[1768730570311,0.010497,95301.0,95287.0,0.11771949]
[1768730572814,0.010497,95301.0,95289.0,0.14649657]
[1768730574717,0.010497,95301.0,95289.0,0.11816504]
[1768730576521,0.010497,95304.0,95289.0,0.11816504]
[1768730578430,0.010497,95302.0,95289.0,0.11816504]
[1768730581029,0.010497,95306.0,95289.0,0.11816504]
[1768730583830,0.1120937,95307.0,95289.0,0.11816504]
[1768730584835,0.1120937,95307.0,95285.0,0.21268504]
[1768730584836,0.09950373,95305.0,95285.0,0.21268504]
[1768730585017,0.09950373,95304.0,95285.0,0.21268504]
[1768730585331,0.09950373,95304.0,95286.0,0.11816504]
[1768730585522,0.09950373,95303.0,95285.0,0.09452]
[1768730585723,0.09950373,95301.0,95285.0,0.09452]
[1768730586624,0.010498,95297.0,95285.0,0.09452]
[1768730587628,0.010498,95297.0,95285.0,0.21268504]
[1768730589533,0.010498,95294.0,95285.0,0.21268504]
[1768730589832,0.010498,95294.0,95285.0,0.09452]
[1768730590828,0.09950373,95297.0,95281.0,0.09452]
[1768730591626,0.09950373,95295.0,95281.0,0.09452]
[1768730593636,0.010499,95289.0,95281.0,0.09452]
[1768730593834,0.09950373,95295.0,95278.0,0.11816504]
[1768730594034,0.010499,95283.0,95270.0,0.09452]
[1768730594238,0.09950373,95285.0,95270.0,0.09452]
[1768730594534,0.010499,95284.0,95270.0,0.09452]
[1768730598736,0.0105,95281.0,95270.0,0.09452]
[1768730598935,0.0105,95279.0,95270.0,0.09452]
[1768730599744,0.0105,95279.0,95269.0,0.00230926]
[1768730600356,0.0105,95274.0,95269.0,2.6e-07]
[1768730600754,0.0105,95274.0,95264.0,0.00230937]
[1768730605057,0.010501,95272.0,95264.0,0.00230937]
[1768730608363,0.0105,95278.0,95264.0,0.00230937]
[1768730609670,0.0105,95275.0,95264.0,0.00230937]
[1768730613152,0.0105,95275.0,95258.0,0.00013524]
[1768730613153,0.09452,95275.0,95258.0,0.00013524]
[1768730613354,0.20546253,95268.0,95249.0,0.00230975]
[1768730613558,0.010502,95261.0,95249.0,0.00230975]
[1768730614160,0.010502,95258.0,95249.0,0.00230975]
[1768730614361,0.00011501,95257.0,95249.0,0.00230975]
[1768730615867,0.010502,95256.0,95249.0,0.00230975]
[1768730616059,0.010502,95256.0,95245.0,0.0207266]
[1768730616858,0.010502,95256.0,95244.0,0.00230986]
[1768730617061,0.00011501,95257.0,95244.0,0.00230986]
[1768730617266,0.00011501,95257.0,95244.0,8.6e-07]
[1768730617267,0.09434982,95248.0,95244.0,8.6e-07]
[1768730617458,0.09434982,95248.0,95229.0,0.02412641]
[1768730617658,0.09434982,95248.0,95231.0,0.02181618]
[1768730618463,0.09434982,95248.0,95233.0,0.010505]
[1768730619863,0.09434982,95248.0,95231.0,0.02181618]
[1768730620664,0.09434982,95248.0,95232.0,0.010505]
[1768730621063,0.09434982,95248.0,95231.0,0.02181618]
[1768730621263,0.09434982,95248.0,95229.0,0.00231023]
[1768730621461,0.09434982,95248.0,95230.0,0.10494889]
[1768730623461,0.09434982,95248.0,95229.0,0.00231023]
[1768730623668,0.10485282,95247.0,95229.0,0.00231023]
[1768730623871,0.010504,95244.0,95229.0,0.00231023]
[1768730624072,0.21403732,95241.0,95229.0,0.00231023]
[1768730624273,0.31898621,95240.0,95229.0,0.00231023]
[1768730624472,0.21403732,95239.0,95229.0,0.00231023]
[1768730625573,0.09434982,95239.0,95229.0,0.00231023]
[1768730626272,0.00012448,95238.0,95229.0,0.00231023]
[1768730626966,0.00012448,95238.0,95227.0,0.09452]
[1768730627168,0.010505,95230.0,95224.0,3.4e-07]
[1768730627374,0.10485482,95230.0,95219.0,0.09456]
[1768730627557,0.10485482,95230.0,95211.0,0.0356192]
[1768730627558,0.09434982,95229.0,95212.0,0.09456]
[1768730628363,0.09434982,95229.0,95212.0,0.1196722]
[1768730628873,0.09434982,95229.0,95213.0,0.010507]
[1768730629173,0.09434982,95229.0,95212.0,0.1301792]
[1768730630275,0.010506,95227.0,95212.0,0.1196722]
[1768730630572,0.010506,95227.0,95212.0,0.09456]
[1768730631169,0.09434982,95229.0,95212.0,0.09456]
[1768730631362,0.010505,95228.0,95212.0,0.09456]
[1768730632966,0.10494889,95230.0,95213.0,0.02629602]
[1768730635173,0.010505,95229.0,95213.0,0.02629602]
[1768730635380,0.010506,95227.0,95212.0,0.09456]
[1768730635874,0.09588095,95226.0,95212.0,0.09456]
[1768730636276,0.010506,95225.0,95212.0,0.09456]
[1768730636480,0.09588095,95224.0,95212.0,0.09456]
[1768730638276,0.10977992,95223.0,95212.0,0.09456]
[1768730638482,0.010506,95226.0,95212.0,0.09456]
[1768730638975,0.20566087,95225.0,95212.0,0.09456]
[1768730639186,0.12028492,95229.0,95212.0,0.09456]
[1768730639784,0.10977992,95229.0,95213.0,0.010507]
[1768730641585,0.010505,95228.0,95212.0,0.09456]
[1768730641882,0.010505,95228.0,95212.0,0.06756]
[1768730642387,0.09588095,95230.0,95212.0,0.06756]
[1768730642686,0.010505,95229.0,95212.0,0.06756]
[1768730644283,0.10494889,95222.0,95209.0,0.00231072]
[1768730644481,0.10494889,95220.0,95209.0,0.00231072]
[1768730644881,0.09588095,95219.0,95205.0,9.016e-05]
[1768730645491,0.09588095,95218.0,95205.0,9.016e-05]
[1768730648603,0.20566087,95218.0,95205.0,9.016e-05]
[1768730649093,0.20566087,95217.0,95205.0,9.016e-05]
[1768730649392,0.09588095,95215.0,95205.0,9.016e-05]
[1768730650078,0.20566087,95215.0,95205.0,9.016e-05]
[1768730650280,0.09588095,95214.0,95205.0,9.016e-05]
[1768730651895,0.20566087,95214.0,95205.0,9.016e-05]
[1768730652083,0.09588095,95213.0,95205.0,9.016e-05]
[1768730656490,0.10638795,95213.0,95205.0,9.016e-05]
[1768730657099,0.09588095,95212.0,95205.0,9.016e-05]
[1768730658303,0.09588095,95212.0,95200.0,0.10494889]
[1768730659001,0.09588095,95212.0,95193.0,0.105069]
[1768730659194,0.010507,95211.0,95200.0,0.10494889]
[1768730659598,0.010507,95211.0,95193.0,0.09456]
[1768730659599,0.09588095,95210.0,95193.0,0.09456]
[1768730660299,0.09588095,95209.0,95193.0,0.09456]
[1768730661993,0.09588095,95209.0,95194.0,0.010509]
[1768730662194,0.09588095,95209.0,95199.0,0.10494889]
[1768730663204,0.09562065,95221.0,95202.0,0.02655062]
[1768730663499,0.10612665,95221.0,95202.0,0.02655062]
[1768730663703,0.10612665,95221.0,95200.0,0.10494889]
[1768730663704,0.0955404,95217.0,95200.0,0.10494889]
[1768730666102,0.0955404,95217.0,95197.0,0.010509]
[1768730666303,0.0955404,95217.0,95200.0,0.10494889]
[1768730669213,0.0955404,95216.0,95200.0,0.10494889]
[1768730669597,0.0955404,95216.0,95198.0,0.02769017]
[1768730669797,0.0955404,95216.0,95200.0,0.10494889]
[1768730670502,0.0955404,95214.0,95200.0,0.10494889]
[1768730671106,0.010507,95213.0,95200.0,0.10494889]
[1768730671405,0.1060474,95213.0,95200.0,0.10494889]
[1768730671800,0.10494889,95220.0,95193.0,0.09456]
[1768730671801,0.0955404,95210.0,95193.0,0.09456]
[1768730672000,0.11375531,95208.0,95193.0,0.09456]
[1768730672204,0.11375531,95206.0,95193.0,0.09456]
[1768730672400,0.0955404,95205.0,95193.0,0.09456]
[1768730674104,0.2187042,95210.0,95193.0,0.09456]
[1768730674105,0.0955404,95203.0,95193.0,0.09456]
[1768730674310,0.0955404,95199.0,95193.0,0.0946]
[1768730674903,0.0955404,95199.0,95189.0,1.3127112]
[1768730674904,0.0955404,95198.0,95189.0,1.3127112]
[1768730675109,0.0955404,95197.0,95189.0,1.3127112]
[1768730677109,0.1083834,95196.0,95185.0,0.0946]
[1768730677308,0.0978744,95196.0,95185.0,0.0946]
[1768730677500,0.010509,95193.0,95185.0,0.0946]
[1768730678924,0.01051,95190.0,95184.0,0.00231131]
[1768730679123,0.01051,95190.0,95158.0,0.97443137]
[1768730679124,0.1083844,95190.0,95175.0,0.0946]
[1768730679424,0.01051,95187.0,95175.0,0.0946]
[1768730679630,0.1083844,95187.0,95175.0,0.0946]
[1768730680420,0.01051,95184.0,95175.0,0.0946]
[1768730680621,0.0978744,95181.0,95174.0,0.82028]
[1768730681021,0.01051,95182.0,95174.0,0.82028]
[1768730681224,0.01051,95182.0,95172.0,0.0946]
[1768730681624,0.01051,95182.0,95169.0,0.00231169]
[1768730681625,0.21192931,95178.0,95169.0,0.00231169]
[1768730682025,0.010511,95180.0,95169.0,0.00231169]
[1768730682627,0.21192931,95179.0,95169.0,0.00231169]
[1768730682828,0.010511,95180.0,95169.0,0.00231169]
[1768730684734,7.539e-05,95183.0,95169.0,0.11117528]
[1768730685035,0.10511,95188.0,95170.0,0.10886359]
[1768730685833,9.856e-05,95187.0,95170.0,0.10886359]
[1768730686132,0.01051,95186.0,95169.0,0.0998203]
[1768730686528,0.01051,95186.0,95169.0,0.00231169]
[1768730686735,9.856e-05,95187.0,95169.0,0.00231169]
[1768730686736,0.01051,95184.0,95169.0,0.00231169]
[1768730686931,0.12456491,95184.0,95169.0,0.00231169]
[1768730687242,0.11405491,95182.0,95169.0,0.00231169]
[1768730687838,0.01051,95184.0,95169.0,0.00231169]
[1768730689937,0.01060856,95187.0,95169.0,0.00231169]
[1768730690133,0.01051,95186.0,95169.0,0.00231169]
[1768730690336,0.12456491,95186.0,95169.0,0.00231169]
[1768730690931,0.01051,95183.0,95169.0,0.00231169]
[1768730691837,0.0978744,95176.0,95167.0,0.0946]
[1768730692028,0.0978744,95176.0,95164.0,1.3127118]
[1768730692029,0.11405491,95174.0,95164.0,1.3127118]
[1768730692228,0.0978744,95175.0,95164.0,1.3127118]
[1768730692429,0.010511,95174.0,95164.0,1.3127118]
[1768730692629,0.12233723,95174.0,95164.0,1.3127118]
[1768730692832,0.11182623,95173.0,95164.0,1.3127118]
[1768730693028,0.010511,95174.0,95164.0,1.3127118]
[1768730693227,0.11182623,95177.0,95164.0,0.0023118]
[1768730693228,0.010512,95171.0,95164.0,0.0023118]
[1768730693529,0.010512,95166.0,95154.0,1.31068]
[1768730693734,0.00013018,95165.0,95154.0,1.31068]
[1768730695238,0.00013018,95165.0,95154.0,1.321193]
[1768730695632,0.00013018,95165.0,95156.0,0.010513]
[1768730699451,0.00013018,95165.0,95154.0,1.31068]
[1768730699452,0.11195641,95165.0,95154.0,1.31068]
[1768730699843,0.00013018,95165.0,95154.0,1.31068]
[1768730700652,0.11198383,95169.0,95154.0,1.31068]
[1768730700653,0.0001576,95169.0,95154.0,1.31068]
[1768730701244,0.09464,95183.0,95169.0,0.11489001]
[1768730701639,0.0996105,95191.0,95171.0,0.11489001]
[1768730701846,0.09464,95190.0,95175.0,0.11489001]
[1768730702047,0.0996105,95198.0,95179.0,0.11489001]
[1768730702048,0.09464,95195.0,95179.0,0.11489001]
[1768730702351,0.010509,95194.0,95180.0,0.11489001]
[1768730702645,0.010509,95194.0,95179.0,0.09949851]
[1768730702646,0.00231131,95184.0,95179.0,0.09949851]
[1768730703151,0.010509,95191.0,95177.0,0.0001576]
[1768730703551,0.12233523,95191.0,95177.0,0.0001576]
[1768730703752,0.11182623,95190.0,95177.0,0.0001576]
[1768730704248,0.11182623,95194.0,95177.0,0.0001576]
[1768730705248,0.09464,95195.0,95178.0,0.11489001]
[1768730706539,0.11182623,95198.0,95178.0,0.11489001]
[1768730706744,0.010509,95196.0,95178.0,0.11489001]
[1768730707441,0.010509,95196.0,95153.0,0.16196723]
[1768730707442,0.11182623,95179.0,95159.0,0.11489001]
[1768730707646,0.11182623,95178.0,95157.0,0.09949851]
[1768730707843,0.010511,95177.0,95157.0,0.09949851]
[1768730708044,0.010512,95172.0,95157.0,0.09949851]
[1768730708250,0.010512,95172.0,95156.0,0.11489001]
[1768730708440,0.12233723,95175.0,95156.0,0.11489001]
[1768730709850,0.010512,95172.0,95156.0,0.11489001]
[1768730710047,0.010512,95172.0,95153.0,0.1211]
[1768730710248,0.010512,95172.0,95152.0,0.30915305]
[1768730710849,0.010512,95172.0,95153.0,0.11489001]
[1768730711051,0.11182623,95175.0,95153.0,0.11489001]
[1768730711454,0.11182623,95175.0,95154.0,0.11489001]
[1768730711647,0.11182623,95175.0,95154.0,0.12540301]
[1768730711848,0.010511,95176.0,95156.0,0.11489001]
[1768730712648,0.010511,95174.0,95156.0,0.11489001]
[1768730713054,0.010512,95172.0,95156.0,0.11489001]
[1768730713452,0.11182623,95176.0,95156.0,0.11489001]
[1768730713648,0.11182623,95175.0,95156.0,0.11489001]
[1768730714545,0.010511,95173.0,95156.0,0.11489001]
[1768730714964,0.010511,95173.0,95155.0,0.09949851]
[1768730715162,0.010512,95171.0,95155.0,0.09949851]
[1768730715456,0.010512,95171.0,95153.0,0.11489001]
[1768730715763,0.010512,95169.0,95153.0,0.11489001]
[1768730717057,0.010512,95172.0,95153.0,0.21438852]
[1768730717251,0.010512,95172.0,95153.0,0.09949851]
[1768730717464,0.010512,95172.0,95154.0,0.11489001]
[1768730718058,0.07551855,95187.0,95170.0,0.11489001]
[1768730718261,0.10515,95185.0,95170.0,0.0723838]
[1768730719262,0.01051,95185.0,95170.0,0.0723838]
[1768730719554,0.09464,95184.0,95170.0,0.0723838]
[1768730719954,0.01051,95185.0,95170.0,0.0723838]
[1768730720264,0.09464,95184.0,95170.0,0.0723838]
[1768730720469,0.01051,95183.0,95170.0,0.0723838]
[1768730720763,0.010511,95181.0,95168.0,0.11489001]
[1768730720965,0.010511,95181.0,95165.0,0.21438852]
[1768730721168,0.010511,95181.0,95166.0,0.11489001]
[1768730724668,0.10515,95184.0,95166.0,0.11489001]
[1768730725766,0.010511,95182.0,95166.0,0.11489001]
[1768730731270,0.010511,95177.0,95165.0,0.09949851]
[1768730731469,0.11421342,95181.0,95164.0,0.0023118]
[1768730731773,0.010511,95175.0,95164.0,0.0023118]
[1768730732272,0.010511,95173.0,95164.0,0.0023118]
[1768730733065,0.010511,95176.0,95164.0,0.0023118]
[1768730733265,0.010511,95174.0,95164.0,0.0023118]
[1768730733666,0.0081998,95174.0,95164.0,0.0023118]
[1768730734886,0.010511,95177.0,95164.0,0.0023118]
[1768730735474,0.11421342,95180.0,95164.0,0.0023118]
[1768730735874,0.11038932,95178.0,95164.0,0.0023118]
[1768730736372,0.010512,95173.0,95164.0,0.0023118]
[1768730738286,0.010511,95176.0,95164.0,0.0023118]
[1768730739273,0.10512146,95174.0,95164.0,0.0023118]
[1768730740083,0.11563246,95174.0,95164.0,0.0023118]
[1768730740886,0.010512,95171.0,95156.0,0.09464]
[1768730741080,0.10512146,95170.0,95156.0,0.09464]
[1768730741485,0.10512146,95166.0,95156.0,0.09464]
[1768730741986,0.010512,95167.0,95156.0,0.09464]
[1768730742283,0.010512,95167.0,95152.0,0.00012453]
[1768730742284,0.10512146,95166.0,95152.0,0.00012453]
[1768730742479,0.21551078,95170.0,95152.0,0.00012453]
[1768730742681,0.10512146,95162.0,95152.0,0.00012453]
[1768730745281,0.010513,95161.0,95152.0,0.00012453]
[1768730747190,0.10512146,95162.0,95152.0,0.00012453]
[1768730747391,0.010512,95166.0,95152.0,0.00012453]
[1768730747997,0.12090132,95166.0,95152.0,0.00012453]
[1768730749380,0.010513,95163.0,95152.0,0.00012453]
[1768730752591,0.10512146,95162.0,95152.0,0.00012453]
[1768730752792,0.010513,95160.0,95152.0,0.00012453]
[1768730754789,0.010513,95158.0,95152.0,0.00012453]
[1768730755591,0.010513,95158.0,95144.0,0.00231228]
[1768730755592,0.09155344,95157.0,95144.0,0.00231228]
[1768730755792,0.1154901,95146.0,95129.0,0.00231266]
[1768730755992,0.1154901,95146.0,95130.0,0.10512146]
[1768730756194,0.010513,95159.0,95140.0,0.21742677]
[1768730756394,0.09464,95158.0,95141.0,0.11743452]
[1768730756595,0.00011068,95157.0,95141.0,0.11743452]
[1768730756801,0.09464,95156.0,95141.0,0.11743452]
[1768730757194,0.00011068,95157.0,95141.0,0.11743452]
[1768730757404,0.20704354,95164.0,95147.0,0.10512146]
[1768730757600,0.09464,95163.0,95150.0,0.10512146]
[1768730757799,0.20704354,95164.0,95150.0,0.10512146]
[1768730757990,0.010512,95169.0,95150.0,0.10512146]
[1768730757991,0.09464,95163.0,95150.0,0.10512146]
[1768730758391,0.09464,95163.0,95146.0,0.09999225]
[1768730758698,0.09464,95163.0,95150.0,0.10512146]
[1768730759491,0.09464,95163.0,95143.0,0.010515]
[1768730759691,0.10512146,95160.0,95142.0,0.010515]
[1768730759892,0.1154901,95161.0,95144.0,0.010515]
[1768730760600,0.1154901,95161.0,95150.0,0.10512146]
[1768730765705,0.1154901,95161.0,95150.0,0.08118729]
[1768730766391,0.1154901,95161.0,95150.0,0.10512146]
[1768730766999,0.09155344,95162.0,95150.0,0.10512146]
[1768730768200,0.09155344,95162.0,95145.0,0.010514]
[1768730768401,0.09155344,95162.0,95142.0,0.11743452]
[1768730768402,0.09155344,95162.0,95150.0,0.10512146]
[1768730770308,0.09155344,95162.0,95144.0,0.010515]
[1768730770500,0.09155344,95162.0,95150.0,0.10512146]
[1768730771202,0.09464,95163.0,95144.0,0.010515]
[1768730771507,0.09464,95163.0,95150.0,0.10512146]
[1768730773207,0.1178019,95164.0,95150.0,0.10512146]
[1768730773708,0.1178019,95164.0,95150.0,0.0811875]
[1768730774396,0.07551855,95171.0,95155.0,0.010513]
[1768730774597,0.09464,95171.0,95160.0,0.09673317]
[1768730775610,0.2101301,95175.0,95160.0,0.09673317]
[1768730776397,0.2101301,95175.0,95157.0,0.010513]
[1768730776602,0.2101301,95175.0,95160.0,0.10512146]
[1768730776603,0.1154901,95175.0,95160.0,0.10512146]
[1768730781015,0.1154901,95175.0,95157.0,0.010513]
[1768730781217,0.1154901,95175.0,95160.0,0.10512146]
[1768730781716,0.1154901,95175.0,95157.0,0.010513]
[1768730781911,0.1154901,95175.0,95160.0,0.10512146]
[1768730782311,0.00231169,95169.0,95160.0,0.10512146]
[1768730782512,0.1154901,95175.0,95160.0,0.10512146]
[1768730783419,0.17015855,95185.0,95166.0,0.2200054]
[1768730783624,0.09464,95185.0,95169.0,0.10512146]
[1768730783814,0.09464,95185.0,95170.0,0.010512]
[1768730784124,0.09464,95185.0,95167.0,0.010512]
[1768730784419,0.09464,95185.0,95170.0,0.10512146]
[1768730785618,0.10807897,95188.0,95170.0,0.10512146]
[1768730785815,0.0023112,95189.0,95174.0,0.010511]
[1768730786213,0.0023112,95189.0,95171.0,0.2200054]
[1768730786914,0.0023112,95189.0,95172.0,0.11658741]
[1768730788221,0.0023112,95189.0,95172.0,0.2094934]